bitfinex/quotes_SOLUSD_20241029
["timestamp","ask_amount","ask_price","bid_price","bid_amount"]
[1730217032382,18.5500162,180.39,180.31,5.78746833]
[1730217032780,18.5500162,180.38,180.32,8.7876326]
[1730217033085,18.5500162,180.35,180.27,20.0]
[1730217033607,18.5500162,180.35,180.28,23.20763401]
[1730217033801,18.5500162,180.36,180.28,23.20763401]
[1730217033995,18.5500162,180.35,180.28,23.20763401]
[1730217034302,18.5500162,180.34,180.28,23.20763401]
[1730217034605,18.5500162,180.35,180.28,23.20763401]
[1730217034783,18.5500162,180.34,180.29,20.0]
[1730217034982,18.5500162,180.35,180.29,37.41945898]
[1730217035205,18.5500162,180.35,180.3,8.63182638]
[1730217035507,18.5500162,180.37,180.3,8.63182638]
[1730217035801,22.2037,180.41,180.31,20.0]
[1730217036007,22.2037,180.41,180.32,8.63182638]
[1730217036008,25.1000162,180.41,180.32,8.63182638]
[1730217036195,18.5500162,180.4,180.33,28.7876326]
[1730217036382,18.5500162,180.4,180.34,8.63182638]
[1730217036581,18.5500162,180.4,180.35,8.7876326]
[1730217036783,6.55,180.41,180.35,8.7876326]
[1730217036784,18.5500162,180.39,180.35,8.7876326]
[1730217037404,18.5500162,180.38,180.35,8.7876326]
[1730217037600,18.5500162,180.39,180.35,8.7876326]
[1730217038592,18.5500162,180.38,180.34,8.63182638]
[1730217038996,18.5500162,180.37,180.34,8.63182638]
[1730217039202,18.5500162,180.35,180.31,8.7876326]
[1730217039505,23.776884,180.4,180.31,8.7876326]
[1730217039506,18.5500162,180.34,180.31,8.7876326]
[1730217039894,18.5500162,180.34,180.31,17.41945898]
[1730217040207,18.5500162,180.35,180.32,8.63182638]
[1730217040385,18.5500162,180.34,180.32,8.63182638]
[1730217040597,18.5500162,180.33,180.32,8.63182638]
[1730217040993,18.5500162,180.33,180.27,8.7876326]
[1730217041206,18.5500162,180.3,180.27,8.7876326]
[1730217041405,18.5500162,180.3,180.27,17.41945898]
[1730217041903,18.5500162,180.32,180.27,17.41945898]
[1730217042696,18.5500162,180.32,180.28,8.63182638]
[1730217042915,18.5500162,180.31,180.28,8.63182638]
[1730217043712,18.5500162,180.29,180.28,8.63182638]
[1730217043915,18.5500162,180.29,180.27,8.7876326]
[1730217044306,18.5500162,180.29,180.25,20.0]
[1730217044816,18.5500162,180.31,180.25,37.41945898]
[1730217044988,18.5500162,180.29,180.25,17.41945898]
[1730217045194,18.5500162,180.27,180.25,17.41945898]
[1730217046192,18.5500162,180.26,180.25,8.63182638]
[1730217046392,18.5500162,180.26,180.22,0.3968581]
[1730217046816,18.5500162,180.27,180.22,9.02868448]
[1730217047612,18.5500162,180.27,180.23,8.7876326]
[1730217048525,0.1,180.32,180.23,8.7876326]
[1730217048526,18.5500162,180.32,180.24,8.63182638]
[1730217048729,6.5209,180.39,180.27,20.0]
[1730217049024,18.5500162,180.39,180.29,20.0]
[1730217049210,18.5500162,180.39,180.3,17.41945898]
[1730217049396,18.5500162,180.38,180.31,20.0]
[1730217049596,18.5500162,180.38,180.32,8.7876326]
[1730217049899,18.5500162,180.37,180.32,8.7876326]
[1730217050597,18.5500162,180.36,180.3,8.63182638]
[1730217050802,18.5500162,180.35,180.3,8.63182638]
[1730217051219,18.5500162,180.34,180.3,8.63182638]
[1730217051397,18.5500162,180.31,180.26,8.7876326]
[1730217051804,0.1,180.38,180.26,17.41945898]
[1730217051805,18.5500162,180.33,180.26,17.41945898]
[1730217052323,18.5500162,180.33,180.27,8.63182638]
[1730217053110,18.5500162,180.34,180.27,8.63182638]
[1730217053416,18.5500162,180.35,180.28,8.7876326]
[1730217053625,18.5500162,180.35,180.29,8.63182638]
[1730217053824,18.5500162,180.35,180.3,8.7876326]
[1730217054125,18.5500162,180.36,180.3,17.41945898]
[1730217054497,18.5500162,180.35,180.3,17.41945898]
[1730217054711,20.1,180.4,180.3,8.63182638]
[1730217054712,18.5500162,180.31,180.3,8.63182638]
[1730217055102,18.5500162,180.32,180.3,8.63182638]
[1730217055302,18.5500162,180.31,180.27,8.7876326]
[1730217055520,18.5500162,180.3,180.27,8.7876326]
[1730217055806,18.5500162,180.3,180.25,8.63182638]
[1730217055997,18.5500162,180.3,180.26,8.7876326]
[1730217056627,18.5500162,180.33,180.26,17.41945898]
[1730217056798,18.5500162,180.32,180.27,8.63182638]
[1730217057210,18.5500162,180.31,180.27,8.63182638]
[1730217057408,18.5500162,180.3,180.27,8.63182638]
[1730217057820,18.5500162,180.31,180.27,8.63182638]
[1730217058012,18.5500162,180.3,180.27,8.63182638]
[1730217058320,23.776884,180.39,180.27,8.63182638]
[1730217058321,18.5500162,180.32,180.27,17.44505873]
[1730217058509,18.5500162,180.36,180.28,8.81323235]
[1730217058719,18.5500162,180.36,180.29,8.63182638]
[1730217058924,18.5500162,180.36,180.3,8.81323235]
[1730217059226,18.5500162,180.41,180.31,28.63182638]
[1730217059430,33.6295162,180.42,180.32,8.81323235]
[1730217059614,24.9285162,180.43,180.33,8.63182638]
[1730217059811,18.5500162,180.44,180.34,28.81323235]
[1730217060020,18.5500162,180.43,180.35,8.63182638]
[1730217060227,18.5500162,180.42,180.35,8.63182638]
[1730217060619,18.5500162,180.41,180.35,8.63182638]
[1730217061423,18.5500162,180.42,180.36,8.7142856]
[1730217061633,18.5500162,180.41,180.36,17.34611198]
[1730217061807,18.5500162,180.37,180.25,15.6053]
[1730217062009,18.5500162,180.33,180.25,15.6053]
[1730217062226,18.5500162,180.31,180.24,6.3246]
[1730217062435,18.5500162,180.31,180.22,0.3968581]
[1730217062653,18.5500162,180.36,180.22,0.3968581]
[1730217062654,18.5500162,180.32,180.23,7.83738194]
[1730217063017,18.5500162,180.32,180.23,15.20111198]
[1730217063528,18.5500162,180.32,180.24,20.0]
[1730217063730,18.5500162,180.32,180.25,7.83738194]
[1730217065122,22.3202,180.38,180.25,7.83738194]
[1730217065123,18.5500162,180.3,180.25,7.83738194]
[1730217065427,18.5500162,180.32,180.25,7.83738194]
[1730217066541,18.5500162,180.35,180.26,20.0]
[1730217066721,22.3202,180.38,180.26,20.0]
[1730217066722,18.5500162,180.36,180.27,7.83738194]
[1730217066924,18.5500162,180.36,180.28,20.0]
[1730217067142,18.5500162,180.35,180.28,27.83738194]
[1730217067435,18.5500162,180.36,180.29,7.83738194]
[1730217068136,18.5500162,180.4,180.3,27.36373004]
[1730217068342,18.5500162,180.31,180.23,5.78898041]
[1730217068525,18.5500162,180.25,180.23,5.78898041]
[1730217068727,18.5500162,180.27,180.22,0.3968581]
[1730217068952,6.5608,180.31,180.22,0.3968581]
[1730217068953,6.5608,180.31,180.22,6.18841757]
[1730217069246,18.5500162,180.29,180.22,0.3968581]
[1730217069440,18.5500162,180.27,180.22,0.3968581]
[1730217069818,6.5608,180.31,180.22,0.3968581]
[1730217069819,18.5500162,180.25,180.22,0.3968581]
[1730217070034,18.5500162,180.27,180.22,0.3968581]
[1730217070232,18.5500162,180.26,180.22,0.3968581]
[1730217070640,18.5500162,180.27,180.22,0.3968581]
[1730217070835,18.5500162,180.28,180.22,0.3968581]
[1730217071141,18.5500162,180.29,180.22,0.3968581]
[1730217071647,6.5608,180.31,180.22,0.3968581]
[1730217071818,25.1108162,180.31,180.22,20.3968581]
[1730217072014,18.5500162,180.3,180.22,20.3968581]
[1730217072645,6.5608,180.31,180.22,20.3968581]
[1730217073343,18.5500162,180.29,180.22,0.3968581]
[1730217073661,6.5608,180.31,180.23,13.98361533]
[1730217074550,34.1494162,180.35,180.24,20.0]
[1730217074551,15.4994,180.35,180.24,20.0]
[1730217074758,15.4994,180.35,180.25,7.36373004]
[1730217078338,15.4994,180.35,180.26,20.0]
[1730217078548,15.4994,180.35,180.27,7.36373004]
[1730217079256,23.876884,180.34,180.25,6.64630968]
[1730217079459,18.5500162,180.3,180.23,7.36373004]
[1730217079637,18.5500162,180.31,180.23,7.36373004]
[1730217079955,20.0,180.31,180.23,7.36373004]
[1730217080758,38.5500162,180.33,180.23,7.36373004]
[1730217081339,34.0494162,180.35,180.23,7.36373004]
[1730217081542,15.4994,180.35,180.24,26.64630968]
[1730217081841,15.4994,180.35,180.26,20.0]
[1730217082154,34.0494162,180.35,180.26,20.0]
[1730217082461,15.4994,180.35,180.26,20.0]
[1730217083040,15.4994,180.35,180.26,26.64630968]
[1730217083241,15.4994,180.35,180.27,7.36373004]
[1730217083656,34.0494162,180.35,180.26,26.64630968]
[1730217084459,15.4994,180.35,180.26,6.64630968]
[1730217084668,15.4994,180.35,180.27,6.64630968]
[1730217088340,18.5500162,180.34,180.27,6.64630968]
[1730217088765,34.0494162,180.35,180.27,6.64630968]
[1730217089961,15.3451,180.4,180.28,7.36373004]
[1730217090147,18.5500162,180.38,180.28,14.01003972]
[1730217090754,20.0,180.39,180.28,6.64630968]
[1730217090755,18.5500162,180.37,180.28,6.64630968]
[1730217090971,18.5500162,180.38,180.28,6.64630968]
[1730217091144,33.8951162,180.4,180.28,6.64630968]
[1730217091350,33.8951162,180.4,180.29,7.36373004]
[1730217092546,18.5500162,180.39,180.29,7.36373004]
[1730217093555,18.5500162,180.38,180.28,6.64630968]
[1730217093881,42.3269002,180.39,180.29,6.64630968]
[1730217094176,15.3451,180.4,180.3,27.36373004]
[1730217094342,15.3451,180.4,180.31,6.64630968]
[1730217094544,18.5500162,180.39,180.32,7.36373004]
[1730217094746,6.3121,180.41,180.31,6.64630968]
[1730217095262,6.3121,180.41,180.32,7.36373004]
[1730217095645,15.4592,180.45,180.33,43.776884]
[1730217095849,15.4592,180.45,180.34,7.36373004]
[1730217096176,24.6868162,180.46,180.36,23.776884]
[1730217096177,6.1368,180.46,180.36,23.776884]
[1730217096353,16.0394,180.49,180.37,27.36373004]
[1730217096540,18.5500162,180.48,180.37,27.36373004]
[1730217096746,34.5894162,180.49,180.37,27.36373004]
[1730217096955,18.5500162,180.48,180.37,27.36373004]
[1730217097751,34.5894162,180.49,180.37,27.36373004]
[1730217098467,18.5500162,180.48,180.37,27.36373004]
[1730217099349,18.5500162,180.46,180.37,27.36373004]
[1730217099563,18.5500162,180.44,180.36,6.64630968]
[1730217100174,18.5500162,180.45,180.36,6.64630968]
[1730217100774,18.5500162,180.46,180.36,6.64630968]
[1730217101483,18.5500162,180.45,180.36,6.64630968]
[1730217103482,18.5500162,180.4,180.3,7.36373004]
[1730217103688,18.5500162,180.39,180.29,6.64630968]
[1730217105379,18.5500162,180.37,180.29,6.64630968]
[1730217105568,18.5500162,180.39,180.29,6.64630968]
[1730217106086,18.5500162,180.38,180.29,6.64630968]
[1730217106662,18.5500162,180.37,180.29,6.64630968]
[1730217107185,18.5500162,180.36,180.29,6.64630968]
[1730217107574,18.5500162,180.33,180.29,6.64630968]
[1730217107778,18.5500162,180.33,180.26,7.36373004]
[1730217109879,18.5500162,180.34,180.26,7.36373004]
[1730217110382,18.5500162,180.34,180.24,8.48867323]
[1730217111001,18.5500162,180.3,180.24,8.48867323]
[1730217111295,25.1760162,180.32,180.24,1.84236355]
[1730217111465,6.626,180.32,180.25,7.36373004]
[1730217112080,18.5500162,180.35,180.25,7.36373004]
[1730217112276,18.5500162,180.34,180.25,7.36373004]
[1730217112486,18.5500162,180.32,180.24,6.64630968]
[1730217112790,18.5500162,180.33,180.22,20.3968581]
[1730217112978,6.7401,180.36,180.24,20.0]
[1730217112979,18.5500162,180.35,180.24,20.0]
[1730217113165,6.6401,180.36,180.24,20.0]
[1730217113166,18.5500162,180.34,180.24,20.0]
[1730217113363,6.6401,180.36,180.24,20.0]
[1730217113364,18.5500162,180.32,180.24,20.0]
[1730217113594,18.5500162,180.31,180.23,6.64630968]
[1730217113804,18.5500162,180.32,180.23,6.64630968]
[1730217114085,18.5500162,180.32,180.22,0.3968581]
[1730217114086,18.5500162,180.29,180.22,0.3968581]
[1730217116691,18.5500162,180.25,180.22,0.3968581]
[1730217116996,18.5500162,180.23,180.22,0.3968581]
[1730217117299,18.5500162,180.25,180.22,0.3968581]
[1730217117794,18.5500162,180.24,180.22,0.3968581]
[1730217118372,18.5500162,180.23,180.22,0.3968581]
[1730217118675,18.5500162,180.24,180.22,0.3968581]
[1730217119090,18.5500162,180.23,180.22,0.3968581]
[1730217119887,38.5500162,180.23,180.22,0.3968581]
[1730217120481,18.5500162,180.23,180.22,0.3968581]
[1730217121073,62.3269002,180.23,180.22,0.3968581]
[1730217121893,38.5500162,180.23,180.22,0.3968581]
[1730217122091,15.3203,180.24,180.22,0.3968581]
[1730217122393,18.5500162,180.25,180.22,0.3968581]
[1730217122394,6.5085,180.27,180.22,0.3968581]
[1730217122606,0.1,180.24,180.22,0.3968581]
[1730217122980,6.6085,180.27,180.22,0.3968581]
[1730217123187,18.5500162,180.25,180.22,0.3968581]
[1730217123401,6.5085,180.27,180.22,0.3968581]
[1730217123575,18.5500162,180.31,180.22,0.3968581]
[1730217123774,18.5500162,180.32,180.22,0.3968581]
[1730217123975,41.5113162,180.33,180.22,0.3968581]
[1730217124899,18.5500162,180.32,180.22,0.3968581]
[1730217125381,41.5113162,180.33,180.22,0.3968581]
[1730217125576,18.5500162,180.36,180.23,23.776884]
[1730217125987,41.1703162,180.37,180.25,23.776884]
[1730217126182,18.5500162,180.4,180.27,23.776884]
[1730217126383,18.5500162,180.4,180.27,29.971484]
[1730217126604,18.5500162,180.39,180.27,29.971484]
[1730217126804,18.5500162,180.4,180.27,29.971484]
[1730217127112,18.5500162,180.4,180.29,23.776884]
[1730217127282,18.5500162,180.4,180.29,39.644484]
[1730217127481,18.5500162,180.38,180.29,39.644484]
[1730217127695,18.5500162,180.37,180.28,20.0]
[1730217127899,18.5500162,180.34,180.26,43.776884]
[1730217128075,18.5500162,180.36,180.26,43.776884]
[1730217128280,18.5500162,180.34,180.26,43.776884]
[1730217128595,18.5500162,180.35,180.26,43.776884]
[1730217129178,18.5500162,180.31,180.22,6.6813581]
[1730217129392,18.5500162,180.29,180.22,6.6813581]
[1730217129976,18.5500162,180.3,180.22,8.55633572]
[1730217130179,18.5500162,180.29,180.22,2.27183572]
[1730217130380,23.776884,180.35,180.22,0.3968581]
[1730217130381,18.5500162,180.25,180.22,0.3968581]
[1730217130583,18.5500162,180.23,180.22,0.3968581]
[1730217131507,38.5500162,180.23,180.22,0.3968581]
[1730217132203,18.5500162,180.26,180.22,0.3968581]
[1730217132380,6.5978,180.31,180.22,0.3968581]
[1730217132381,6.4978,180.31,180.22,0.3968581]
[1730217132577,18.5500162,180.29,180.22,0.3968581]
[1730217132804,18.5500162,180.28,180.22,0.3968581]
[1730217133198,18.5500162,180.27,180.22,0.3968581]
[1730217133385,18.5500162,180.24,180.22,0.3968581]
[1730217133581,18.5500162,180.25,180.22,0.3968581]
[1730217133976,18.5500162,180.24,180.22,0.3968581]
[1730217134379,18.5500162,180.25,180.22,0.3968581]
[1730217134605,18.5500162,180.23,180.22,0.3968581]
[1730217134803,18.5500162,180.24,180.22,0.3968581]
[1730217135180,18.5500162,180.23,180.22,0.3968581]
[1730217136212,18.5500162,180.24,180.22,0.3968581]
[1730217136378,18.5500162,180.26,180.22,0.3968581]
[1730217136585,18.5500162,180.24,180.22,0.3968581]
[1730217136794,18.5500162,180.25,180.22,0.3968581]
[1730217137108,18.5500162,180.26,180.22,0.3968581]
[1730217137303,18.5500162,180.25,180.22,0.3968581]
[1730217137914,18.5500162,180.26,180.22,0.3968581]
[1730217138094,18.5500162,180.25,180.22,0.3968581]
[1730217138291,18.5500162,180.26,180.22,0.3968581]
[1730217138810,18.5500162,180.24,180.22,0.3968581]
[1730217139218,18.5500162,180.25,180.22,0.3968581]
[1730217140218,18.5500162,180.27,180.22,0.3968581]
[1730217140399,18.5500162,180.26,180.22,0.3968581]
[1730217140909,18.5500162,180.28,180.22,0.3968581]
[1730217141114,18.5500162,180.26,180.22,0.3968581]
[1730217141522,18.5500162,180.25,180.22,0.3968581]
[1730217141816,18.5500162,180.26,180.22,0.3968581]
[1730217142609,20.0,180.3,180.22,0.3968581]
[1730217142610,18.5500162,180.27,180.22,0.3968581]
[1730217143201,18.5500162,180.24,180.22,0.3968581]
[1730217143718,18.5500162,180.23,180.22,0.3968581]
[1730217144291,38.5500162,180.23,180.22,0.3968581]
[1730217144516,44.8857162,180.23,180.22,0.3968581]
[1730217144708,24.8857162,180.23,180.22,0.3968581]
[1730217149133,24.8857162,180.23,180.09,5.79460011]
[1730217149134,0.1,180.21,180.09,5.79460011]
[1730217149305,20.0,180.22,180.05,23.94649463]
[1730217149306,18.5500162,180.12,180.05,27.85371578]
[1730217149622,18.5500162,180.12,180.05,21.53801578]
[1730217149922,18.5500162,180.11,180.04,0.6089535]
[1730217150228,15.4331,180.16,180.04,0.6089535]
[1730217150229,18.5500162,180.1,180.04,0.6089535]
[1730217151428,18.5500162,180.09,180.04,0.6089535]
[1730217151628,18.5500162,180.1,180.04,0.6089535]
[1730217151815,18.5500162,180.09,180.04,0.6089535]
[1730217152411,18.5500162,180.12,180.04,0.6089535]
[1730217152628,6.3537,180.14,180.04,0.6089535]
[1730217152629,18.5500162,180.13,180.04,0.6089535]
[1730217152845,18.5500162,180.15,180.04,7.23601688]
[1730217153418,15.3331,180.16,180.04,7.23601688]
[1730217153419,33.8831162,180.16,180.05,30.40394738]
[1730217153617,18.5500162,180.15,180.05,23.776884]
[1730217154656,18.5500162,180.18,180.07,23.776884]
[1730217154941,24.9613162,180.19,180.07,23.776884]
[1730217155164,18.5500162,180.18,180.07,23.776884]
[1730217155316,18.5500162,180.2,180.09,23.776884]
[1730217155515,18.5500162,180.19,180.09,23.776884]
[1730217155741,0.1,180.3,180.1,16.3684]
[1730217155949,16.5775,180.31,180.1,16.3684]
[1730217155950,16.5775,180.31,180.14,20.0]
[1730217156245,16.5775,180.31,180.19,23.776884]
[1730217156458,18.5500162,180.3,180.21,23.776884]
[1730217156918,6.3869,180.33,180.21,23.776884]
[1730217156919,18.5500162,180.28,180.21,23.776884]
[1730217157116,18.5500162,180.27,180.21,23.776884]
[1730217157321,18.5500162,180.24,180.17,23.776884]
[1730217157541,18.5500162,180.25,180.17,23.776884]
[1730217157730,18.5500162,180.26,180.17,23.776884]
[1730217158129,18.5500162,180.28,180.17,23.776884]
[1730217158333,6.4869,180.33,180.15,5.84505633]
[1730217158334,18.5500162,180.24,180.15,13.80809109]
[1730217158633,18.5500162,180.23,180.17,23.776884]
[1730217159223,18.5500162,180.24,180.17,23.776884]
[1730217159542,20.0,180.32,180.17,23.776884]
[1730217159543,18.5500162,180.28,180.18,7.42197727]
[1730217159746,18.5500162,180.28,180.19,23.776884]
[1730217160744,18.5500162,180.27,180.19,23.776884]
[1730217160941,18.5500162,180.28,180.19,23.776884]
[1730217161344,18.5500162,180.29,180.19,23.776884]
[1730217161546,18.5500162,180.31,180.21,23.776884]
[1730217162129,24.9369162,180.33,180.23,23.776884]
[1730217162824,18.5500162,180.32,180.23,23.776884]
[1730217163650,18.5500162,180.28,180.22,23.776884]
[1730217163854,18.5500162,180.25,180.18,20.0]
[1730217164029,18.5500162,180.24,180.18,20.0]
[1730217164232,18.5500162,180.25,180.18,20.0]
[1730217164554,18.5500162,180.25,180.16,20.0]
[1730217164935,18.5500162,180.24,180.16,20.0]
[1730217165146,18.5500162,180.25,180.16,20.0]
[1730217166527,18.5500162,180.25,180.15,5.84505633]
[1730217166741,18.5500162,180.25,180.16,23.776884]
[1730217167131,18.5500162,180.29,180.17,7.42197727]
[1730217167457,18.5500162,180.3,180.18,23.776884]
[1730217167653,18.5500162,180.29,180.18,23.776884]
[1730217167863,18.5500162,180.29,180.17,7.42197727]
[1730217167864,18.5500162,180.29,180.17,23.776884]
[1730217168049,18.5500162,180.27,180.19,23.776884]
[1730217168452,18.5500162,180.29,180.19,23.776884]
[1730217169140,20.1,180.32,180.19,23.776884]
[1730217169341,6.3869,180.33,180.24,20.0]
[1730217169559,6.3869,180.33,180.25,23.776884]
[1730217170069,18.5500162,180.26,180.23,1.62956715]
[1730217170239,18.5500162,180.26,180.17,20.0]
[1730217170240,18.5500162,180.27,180.17,20.0]
[1730217170446,18.5500162,180.29,180.17,33.56360119]
[1730217170751,18.5500162,180.29,180.19,20.0]
[1730217171347,18.5500162,180.29,180.2,23.776884]
[1730217171770,18.5500162,180.28,180.2,23.776884]
[1730217172349,18.5500162,180.3,180.2,23.776884]
[1730217172756,6.3869,180.33,180.24,23.776884]
[1730217173046,18.5500162,180.34,180.24,23.776884]
[1730217173652,18.5500162,180.33,180.24,23.776884]
[1730217174048,6.1532,180.37,180.24,23.776884]
[1730217174049,24.7032162,180.37,180.24,23.776884]
[1730217174247,24.7032162,180.37,180.27,20.0]
[1730217174248,6.1532,180.37,180.27,20.0]
[1730217174449,18.5500162,180.39,180.27,20.0]
[1730217174657,16.0616,180.4,180.28,23.776884]
[1730217174846,18.5500162,180.37,180.28,23.776884]
[1730217175465,18.5500162,180.38,180.28,23.776884]
[1730217176473,18.5500162,180.37,180.28,23.776884]
[1730217176661,18.5500162,180.36,180.28,23.776884]
[1730217177162,18.5500162,180.33,180.28,23.776884]
[1730217177363,18.5500162,180.33,180.23,6.2679]
[1730217177853,18.5500162,180.34,180.23,6.2679]
[1730217178058,18.5500162,180.35,180.23,13.68987727]
[1730217178471,18.5500162,180.35,180.24,20.0]
[1730217178771,18.5500162,180.35,180.25,23.776884]
[1730217179448,18.5500162,180.36,180.26,20.0]
[1730217179652,18.5500162,180.36,180.27,23.776884]
[1730217179851,18.5500162,180.38,180.29,23.776884]
[1730217180253,18.5500162,180.39,180.29,23.776884]
[1730217180549,16.0616,180.4,180.31,23.776884]
[1730217180750,34.6116162,180.4,180.31,23.776884]
[1730217181561,34.6116162,180.4,180.31,30.94168014]
[1730217182164,34.6116162,180.4,180.32,7.16479614]
[1730217182372,34.6116162,180.4,180.33,23.776884]
[1730217183165,34.6116162,180.4,180.33,33.39582988]
[1730217183763,34.6116162,180.4,180.34,9.61894588]
[1730217183968,16.0616,180.4,180.34,9.61894588]
[1730217184160,6.0761,180.42,180.34,9.61894588]
[1730217184161,6.0761,180.42,180.35,23.776884]
[1730217184366,24.6261162,180.42,180.36,9.61894588]
[1730217184581,18.5500162,180.4,180.36,9.61894588]
[1730217184952,18.5500162,180.37,180.32,7.16479614]
[1730217185665,18.5500162,180.38,180.32,7.16479614]
[1730217186374,18.5500162,180.36,180.32,7.16479614]
[1730217186556,18.5500162,180.35,180.32,7.16479614]
[1730217187072,13.5500162,180.35,180.32,7.16479614]
[1730217187681,18.5500162,180.37,180.32,7.16479614]
[1730217187981,18.5500162,180.41,180.34,23.776884]
[1730217188160,18.5500162,180.4,180.35,9.61894588]
[1730217188357,18.5500162,180.39,180.35,9.61894588]
[1730217188681,18.5500162,180.38,180.35,9.61894588]
[1730217189275,18.5500162,180.39,180.35,9.61894588]
[1730217189977,18.5500162,180.41,180.35,9.61894588]
[1730217190158,18.5500162,180.4,180.35,9.61894588]
[1730217190368,24.6261162,180.42,180.35,9.61894588]
[1730217190575,34.6847162,180.44,180.36,23.776884]
[1730217190980,16.1347,180.44,180.36,23.776884]
[1730217191189,34.6847162,180.44,180.36,23.776884]
[1730217191490,18.5500162,180.4,180.35,9.61894588]
[1730217191786,18.5500162,180.4,180.33,23.776884]
[1730217191979,18.5500162,180.43,180.33,30.94168014]
[1730217192176,18.5500162,180.43,180.33,40.56062602]
[1730217192478,18.5500162,180.41,180.33,40.56062602]
[1730217193187,18.5500162,180.41,180.33,30.94168014]
[1730217193373,18.5500162,180.4,180.34,9.61894588]
[1730217194483,18.5500162,180.43,180.35,23.776884]
[1730217194685,18.5500162,180.42,180.35,33.39582988]
[1730217195386,16.1347,180.44,180.36,9.61894588]
[1730217196475,15.0463,180.49,180.37,23.776884]
[1730217196779,15.0463,180.49,180.39,23.776884]
[1730217196986,15.0463,180.49,180.39,33.39582988]
[1730217197186,18.5500162,180.51,180.41,23.776884]
[1730217197490,18.5500162,180.5,180.41,33.39582988]
[1730217198268,18.5500162,180.49,180.41,33.39582988]
[1730217198672,18.5500162,180.48,180.41,33.39582988]
[1730217198891,18.5500162,180.48,180.41,9.61894588]
[1730217200575,18.5500162,180.49,180.41,9.61894588]
[1730217201098,18.5500162,180.48,180.41,9.61894588]
[1730217201395,18.6500162,180.54,180.36,1.54563199]
[1730217201396,18.5500162,180.46,180.36,1.54563199]
[1730217201606,18.5500162,180.43,180.37,7.16479614]
[1730217201976,18.5500162,180.44,180.37,7.16479614]
[1730217202476,18.5500162,180.41,180.37,7.16479614]
[1730217202785,18.5500162,180.42,180.37,7.16479614]
[1730217202994,18.5500162,180.42,180.35,23.776884]
[1730217203296,18.5500162,180.43,180.34,9.61894588]
[1730217203488,18.5500162,180.44,180.35,23.776884]
[1730217203698,18.5500162,180.44,180.35,9.61894588]
[1730217204474,18.5500162,180.43,180.35,9.61894588]
[1730217204870,18.5500162,180.44,180.36,23.776884]
[1730217205395,6.4353,180.47,180.35,9.61894588]
[1730217205396,18.5500162,180.43,180.35,9.61894588]
[1730217205595,18.5500162,180.45,180.35,9.61894588]
[1730217206500,18.5500162,180.46,180.35,9.61894588]
[1730217207002,18.5500162,180.45,180.35,9.61894588]
[1730217207204,18.5500162,180.45,180.36,23.776884]
[1730217208300,18.5500162,180.46,180.36,23.776884]
[1730217208680,18.5500162,180.45,180.36,23.776884]
[1730217208880,18.5500162,180.44,180.36,23.776884]
[1730217209595,6.4353,180.47,180.36,23.776884]
[1730217209596,18.5500162,180.45,180.36,23.776884]
[1730217209991,24.9853162,180.47,180.36,33.39582988]
[1730217210181,18.5500162,180.46,180.37,9.61894588]
[1730217210582,11.61381323,180.46,180.37,9.61894588]
[1730217210786,6.4353,180.47,180.38,23.776884]
[1730217210981,6.4353,180.47,180.39,9.61894588]
[1730217211612,6.4353,180.47,180.4,23.776884]
[1730217212604,15.4521,180.49,180.4,23.776884]
[1730217212794,18.57821164,180.52,180.41,9.61894588]
[1730217212996,18.57821164,180.48,180.41,9.61894588]
[1730217213199,18.57821164,180.48,180.41,16.72394202]
[1730217213404,18.57821164,180.49,180.41,7.10499614]
[1730217213908,0.2,180.52,180.41,7.10499614]
[1730217214114,18.57821164,180.48,180.41,7.10499614]
[1730217214285,18.57821164,180.43,180.41,7.10499614]
[1730217214484,18.57821164,180.43,180.34,21.9755]
[1730217214707,0.2,180.48,180.34,21.9755]
[1730217214708,18.57821164,180.42,180.34,21.9755]
[1730217215006,18.57821164,180.44,180.34,21.9755]
[1730217215195,23.776884,180.5,180.34,21.9755]
[1730217215397,5.5395,180.52,180.35,15.50569536]
[1730217215398,18.57821164,180.48,180.35,15.50569536]
[1730217215594,18.57821164,180.48,180.36,43.776884]
[1730217215907,18.57821164,180.48,180.36,51.49421876]
[1730217216615,18.57821164,180.48,180.38,43.776884]
[1730217217106,18.57861195,180.48,180.43,18.57861195]
[1730217217491,0.1,180.5,180.37,7.71733476]
[1730217217691,18.57861195,180.46,180.37,20.0]
[1730217217897,18.57861195,180.45,180.37,20.0]
[1730217218691,18.57861195,180.46,180.37,20.0]
[1730217219020,18.57861195,180.47,180.37,27.71733476]
[1730217219190,18.57861195,180.45,180.36,23.776884]
[1730217219395,18.57861195,180.46,180.37,20.0]
[1730217220010,18.57861195,180.45,180.37,20.0]
[1730217220309,23.776884,180.51,180.37,20.0]